fUSD/lending_fUSD_20240318
["ID","MTS","AMOUNT","RATE_DAILY","PERIOD"]
[319500936,1710803432644,-525.79399916,0.00014,2]
[319500942,1710803432696,-1497.63802444,0.00014,2]
[319500944,1710803432708,-33440.3446742,0.00014,2]
[319500949,1710803432746,-66207.03944895,0.00014,2]
[319500951,1710803432755,-150.0,0.00014,2]
[319500953,1710803432765,-150.0,0.00014,2]
[319500955,1710803432774,-232.9333958,0.00014,2]
[319500957,1710803432783,-28638.35522916,0.00014,2]
[319500960,1710803432796,-2042.58782042,0.00014,2]
[319500962,1710803432807,-16282.69695042,0.00014,2]
[319500964,1710803432817,-178.29,0.00014068,2]
[319500966,1710803432826,-172.33,0.00014173,2]
[319500967,1710803432836,-356.17,0.00014616,2]
[319500969,1710803432845,-653.01304955,0.00015,2]
[319500970,1710803432857,-3883.5818253,0.00015,2]
[319500971,1710803432870,-33331.44906652,0.00015,2]
[319500972,1710803432880,-210.0,0.00015067,2]
[319500973,1710803432890,-210.0,0.00015067,2]
[319500974,1710803432899,-150.0,0.00015068,2]
[319500975,1710803432909,-169.71564664,0.000152,2]
[319500976,1710803432918,-367.04,0.00015434,2]
[319500977,1710803432928,-232.19537326,0.00016,2]
[319500978,1710803432938,-2519.9,0.00016438,2]
[319500979,1710803432947,-169.71564664,0.000165,2]
[319500980,1710803432956,-695.88,0.00016601,2]
[319500981,1710803432967,-164.22,0.00016876,2]
[319500982,1710803432977,-164.22,0.00017113,2]
[319500983,1710803432986,-1000.0,0.00017267,2]
[319500984,1710803432996,-164.22,0.00017349,2]
[319500985,1710803433005,-151.62,0.00017533,2]
[319500986,1710803433014,-164.22,0.00017585,2]
[319500987,1710803433023,-3468.04811195,0.00017678,2]
[319500988,1710803433032,-367.04,0.00017698,2]
[319500989,1710803433042,-169.71564664,0.000178,2]
[319500990,1710803433052,-164.22,0.00017821,2]
[319500991,1710803433061,-164.22,0.00018058,2]
[319500992,1710803433070,-169.71564664,0.000191,2]
[319500993,1710803433080,-581.18,0.00019178,2]
[319500994,1710803433089,-500.0,0.00019178,2]
[319500995,1710803433098,-18477.08948894,0.00019212,2]
[319500996,1710803433109,-3184.93799676,0.00019212,2]
[319500997,1710803433163,-26052.78225041,0.00019212,2]
[319500998,1710803433174,-2462.56452739,0.00019212,2]
[319500999,1710803433190,-22036.6257365,0.00019212,2]
[319501000,1710803433199,-695.88,0.00019341,2]
[319501001,1710803433208,-1000.0,0.00019425,2]
[319501002,1710803433217,-151.62,0.00019724,2]
[319501003,1710803433226,-367.04,0.00019961,2]
[319501004,1710803433236,-101388.35839691,0.0002,2]
[319501005,1710803433245,-351.80148276,0.00020023,2]
[319501006,1710803433255,-169.71564664,0.000204,2]
[319501007,1710803433264,-188.0,0.00020548,2]
[319501008,1710803433274,-22059.97227985,0.00020953,5]
[319501009,1710803433283,-1000.0,0.00020999,2]
[319501010,1710803433293,-369.04368316,0.00021023,60]
[319501011,1710803433302,-3468.04811195,0.00021456,2]
[319501012,1710803433311,-11661.20839895,0.000215,3]
[319501013,1710803433320,-307.06412405,0.000215,2]
[319501014,1710803433329,-1000.0,0.00021584,2]
[319501015,1710803433339,-29928.43975878,0.00021597,2]
[319501016,1710803433348,-39609.2653,0.000216,2]
[319501017,1710803433358,-151.15077799,0.000216,2]
[319501018,1710803433370,-1808.67538755,0.000216,2]
[319501019,1710803433379,-231.56067776,0.000216,2]
[319501020,1710803433389,-170.68899153,0.0002169,2]
[319501021,1710803433399,-1000.0,0.000217,2]
[319501022,1710803433408,-84967.28008787,0.000217,2]
[319501023,1710803433421,-1042.36206145,0.000217,2]
[319501024,1710803433440,-865.970507,0.000217,2]
[319501025,1710803433451,-1367.92320306,0.000217,2]
[319501026,1710803433471,-278.60878409,0.000217,2]
[319501027,1710803433482,-1402.25005701,0.000217,2]
[319501028,1710803433494,-27641.0,0.000217,2]
[319501029,1710803433506,-21693.39522563,0.000217,2]
[319501057,1710803438180,-67880.47465865,0.000217,2]
[319501060,1710803438191,-4651.7573199,0.000217,2]
[319501073,1710803438336,-5000.0,0.000217,2]
[319501074,1710803438464,-1023.5008851,0.000217,2]
[319501075,1710803438475,-358.48667185,0.000217,2]
[319501076,1710803438490,-4505.65838688,0.000217,2]
[319501077,1710803438502,-2607.04330854,0.000217,2]
[319501078,1710803438520,-9335.38569197,0.000217,2]
[319501079,1710803438532,-954.99691083,0.000217,2]
[319501080,1710803438544,-645.46127399,0.000217,2]
[319501081,1710803438560,-5258.58546618,0.000217,2]
[319501082,1710803438570,-33776.7843,0.000217,2]
[319501083,1710803438579,-100000.0,0.000217,2]
[319501084,1710803438589,-826.603,0.000217,2]
[319501085,1710803438598,-169.71564664,0.000217,2]
[319501086,1710803438608,-500.0,0.00021717,2]
[319501087,1710803438619,-188.0,0.00021781,2]
[319501088,1710803438633,-12199.41478721,0.000218,5]
[319501090,1710803438920,-7720.70981384,0.000218,5]
[319501091,1710803438932,-565.31832704,0.000218,5]
[319501092,1710803438944,-127881.95302693,0.000218,5]
[319501093,1710803438953,-156.66023418,0.000218,2]
[319501094,1710803438962,-156.66023418,0.000218,2]
[319501095,1710803438970,-156.66023418,0.000218,2]
[319501096,1710803438980,-156.66023418,0.000218,2]
[319501097,1710803438991,-151.62,0.00021916,2]
[319501098,1710803439001,-150.96,0.00021918,2]
[319501099,1710803439010,-470.02,0.00021918,10]
[319501100,1710803439020,-250.0,0.00021918,2]
[319501101,1710803439029,-155.0,0.00021918,2]
[319501102,1710803439038,-779.74941329,0.00022,2]
[319501103,1710803439047,-9158.81979082,0.00022,2]
[319501104,1710803439056,-261.68569334,0.0002207,2]
[319501105,1710803439065,-695.88,0.00022081,2]
[319501106,1710803439074,-367.04,0.00022225,2]
[319501107,1710803439083,-151.15077774,0.0002235,2]
[319501108,1710803439093,-155.398698,0.00022675,2]
[319501109,1710803439102,-163.183866,0.00022675,2]
[319501110,1710803439110,-155.398699,0.00022675,2]
[319501111,1710803439119,-155.398698,0.00022675,2]
[319501112,1710803439130,-163.183865,0.00022675,2]
[319501113,1710803439150,-155.398699,0.00022675,2]
[319501114,1710803439162,-155.398698,0.00022675,2]
[319501115,1710803439173,-163.183865,0.00022675,2]
[319501116,1710803439183,-195.722844,0.00022675,2]
[319501117,1710803439193,-898.305362,0.00022675,2]
[319501118,1710803439203,-174.410315,0.00022675,2]
[319501119,1710803439213,-200.280372,0.00022676,2]
[319501120,1710803439223,-166.389126,0.00022676,2]
[319501121,1710803439233,-898.305362,0.00022959,2]
[319501122,1710803439242,-306.0676328,0.00023,2]
[319501123,1710803439253,-320.0,0.00023,10]
[319501124,1710803439263,-188.0,0.00023013,2]
[319501125,1710803439272,-151.15077774,0.00023099,2]
[319501126,1710803439282,-173.92223319,0.000232,2]
[319501127,1710803439291,-898.305362,0.00023242,2]
[319501128,1710803439301,-174.410315,0.00023242,2]
[319501129,1710803439313,-177.09,0.00023288,14]
[319501130,1710803439323,-155.0,0.00023288,2]
[319501131,1710803439332,-156.66023418,0.00023358,2]
[319501132,1710803439341,-898.305362,0.00023526,2]
[319501133,1710803439351,-1919.09106593,0.0002354,2]
[319501134,1710803439360,-1000.0,0.00023742,2]
[319501135,1710803439371,-898.305362,0.00023809,2]
[319501136,1710803439381,-155.398698,0.00023809,2]
[319501137,1710803439390,-155.398699,0.00023809,2]
[319501138,1710803439402,-155.398698,0.00023809,2]
[319501139,1710803439412,-155.398699,0.00023809,2]
[319501140,1710803439423,-155.398698,0.00023809,2]
[319501141,1710803439433,-174.410315,0.00023809,2]
[319501142,1710803439443,-151.15077774,0.00023849,2]
[319501143,1710803439454,-206.88985854,0.00024,2]
[319501144,1710803439464,-429.43434009,0.00024,2]
[319501145,1710803439474,-150.0,0.00024,10]
[319501146,1710803439483,-361.05,0.00024061,2]
[319501147,1710803439493,-151.62,0.00024107,2]
[319501148,1710803439503,-407.84,0.00024186,2]
[319501149,1710803439512,-408.29,0.00024186,2]
[319501150,1710803439522,-157.031908,0.00024198,4]
[319501151,1710803439531,-188.0,0.00024246,2]
[319501152,1710803439541,-150.0,0.00024323,2]
[319501153,1710803439551,-150.0,0.00024323,2]
[319501154,1710803439563,-300.0,0.00024323,2]
[319501155,1710803439572,-150.0,0.00024323,2]
[319501156,1710803439581,-150.0,0.00024323,2]
[319501157,1710803439590,-150.0,0.00024323,2]
[319501158,1710803439600,-150.0,0.00024416,2]
[319501159,1710803439609,-414.91,0.00024416,2]
[319501160,1710803439619,-367.04,0.00024489,2]
[319501161,1710803439631,-157.031908,0.00024498,5]
[319501162,1710803439641,-500.0,0.0002453,90]
[319501163,1710803439651,-151.15077774,0.00024598,2]
[319501164,1710803439661,-1808.67538745,0.00024618,2]
[319501165,1710803439671,-150.96,0.00024658,2]
[319501166,1710803439680,-470.02,0.00024658,10]
[319501167,1710803439689,-155.0,0.00024658,2]
[319501168,1710803439699,-231.56067776,0.00024752,2]
[319501169,1710803439711,-157.031908,0.00024798,5]
[319501170,1710803439722,-8773.56569405,0.00025,2]
[319501171,1710803439731,-1018.42220439,0.00025,10]
[319501172,1710803439740,-150.0,0.00025145,2]
[319501173,1710803439750,-151.031907,0.00025198,6]
[319501174,1710803439759,-500.0,0.00025202,2]
[319501175,1710803439768,-258.13022611,0.00025202,2]
[319501176,1710803439778,-1960.09209409,0.00025202,2]
[319501177,1710803439787,-1363.0,0.00025203,2]
[319501178,1710803439798,-1803.75875547,0.00025203,2]
[319501179,1710803439807,-152.54071739,0.00025233,2]
[319501180,1710803439817,-3468.04811195,0.00025233,2]
[319501181,1710803439826,-150.0,0.00025238,2]
[319501182,1710803439835,-150.0,0.00025238,2]
[319501183,1710803439844,-150.0,0.00025238,2]
[319501184,1710803439854,-150.0,0.00025238,2]
[319501185,1710803439863,-301.28,0.00025238,2]
[319501186,1710803439875,-408.41,0.00025238,2]
[319501187,1710803439884,-151.15077774,0.00025348,2]
[319501188,1710803439893,-188.0,0.00025479,2]
[319501189,1710803439903,-151.031907,0.00025498,6]
[319501190,1710803439913,-500.0,0.000255,2]
[319501191,1710803439922,-310.0,0.000255,2]
[319501192,1710803439932,-303.0,0.000255,2]
[319501193,1710803439942,-300.0,0.000255,2]
[319501194,1710803439951,-192.0,0.00025593,2]
[319501195,1710803439961,-307.06412405,0.000256,2]
[319501196,1710803439970,-156.66023418,0.00025722,2]
[319501197,1710803439979,-166.23,0.00025789,2]
[319501198,1710803439989,-151.031907,0.00025798,6]
[319501199,1710803439998,-166.563263,0.00025845,2]
[319501200,1710803440009,-1000.0,0.00025901,2]
[319501201,1710803440019,-155.0,0.00026028,2]
[319501202,1710803440030,-151.15077774,0.00026097,2]
[319501203,1710803440040,-169.49172464,0.00026115,2]
[319501204,1710803440050,-151.031907,0.00026198,7]
[319501206,1710803440061,-151.62,0.00026299,120]
[319501207,1710803440070,-925.0,0.00026372,2]
[319501208,1710803440079,-3898.0,0.00026372,2]
[319501209,1710803440089,-896.0,0.00026372,2]
[319501210,1710803440099,-316.0,0.00026372,2]
[319501211,1710803440108,-151.031907,0.00026498,7]
[319501212,1710803440119,-500.0,0.0002657,120]
[319501213,1710803440129,-925.0,0.00026644,2]
[319501215,1710803440140,-3898.0,0.00026644,2]
[319501217,1710803440150,-896.0,0.00026644,2]
[319501219,1710803440160,-316.0,0.00026644,2]
[319501220,1710803440169,-151.0,0.00026683,2]
[319501221,1710803440179,-188.0,0.00026712,2]
[319501223,1710803440189,-367.04,0.00026753,2]
[319501225,1710803440199,-151.031907,0.00026798,7]
[319501226,1710803440210,-151.15077774,0.00026847,2]
[319501227,1710803440220,-925.0,0.00026916,2]
[319501228,1710803440230,-3898.0,0.00026916,2]
[319501229,1710803440240,-896.0,0.00026916,2]
[319501230,1710803440250,-316.0,0.00026916,2]
[319501231,1710803440259,-167.63953181,0.00027,2]
[319501232,1710803440270,-350.29288356,0.00027,2]
[319501233,1710803440279,-1118.1,0.00027,2]
[319501234,1710803440289,-153.05383812,0.00027108,2]
[319501235,1710803440298,-200.0,0.00027159,2]
[319501236,1710803440307,-925.0,0.00027188,2]
[319501237,1710803440317,-3898.0,0.00027188,2]
[319501238,1710803440327,-896.0,0.00027188,2]
[319501239,1710803440337,-316.0,0.00027188,2]
[319501240,1710803440346,-151.031907,0.00027198,8]
[319501241,1710803440356,-153.6268143,0.00027375,2]
[319501242,1710803440366,-150.96,0.00027397,2]
[319501243,1710803440376,-470.02,0.00027397,10]
[319501244,1710803440386,-155.0,0.00027398,2]
[319501245,1710803440395,-181.39923643,0.00027399,2]
[319501246,1710803440404,-153.05383812,0.00027456,2]
[319501247,1710803440414,-925.0,0.0002746,2]
[319501248,1710803440423,-3898.0,0.0002746,2]
[319501249,1710803440433,-896.0,0.0002746,2]
[319501250,1710803440443,-316.0,0.0002746,2]
[319501251,1710803440452,-151.031907,0.00027498,8]
[319501252,1710803440462,-187.40370458,0.000275,2]
[319501253,1710803440471,-151.15077774,0.00027596,2]
[319501254,1710803440480,-1808.67538745,0.00027636,2]
[319501255,1710803440490,-925.0,0.00027732,2]
[319501256,1710803440499,-3898.0,0.00027732,2]
[319501257,1710803440508,-896.0,0.00027732,2]
[319501258,1710803440518,-316.0,0.00027732,2]
[319501259,1710803440527,-151.031907,0.00027798,8]
[319501260,1710803440537,-362.01412075,0.00027874,2]
[319501261,1710803440546,-231.56067776,0.00027904,2]
[319501262,1710803440555,-151.07221851,0.00027936,2]
[319501263,1710803440566,-188.0,0.00027945,2]
[319501264,1710803440576,-1000.0,0.00027945,2]
[319501265,1710803440585,-155.0,0.00028,2]
[319501266,1710803440594,-389.336264,0.00028,2]
[319501267,1710803440604,-200.0,0.00028,2]
[319501268,1710803440613,-500.0,0.00028,2]
[319501269,1710803440623,-925.0,0.00028004,2]
[319501270,1710803440633,-3898.0,0.00028004,2]
[319501271,1710803440644,-896.0,0.00028004,2]
[319501272,1710803440653,-316.0,0.00028004,2]
[319501273,1710803440662,-156.66023418,0.00028086,2]
[319501274,1710803440673,-172.9214979,0.000281,120]
[319501275,1710803440682,-162.6041618,0.00028163,2]
[319501276,1710803440690,-151.031907,0.00028198,9]
[319501277,1710803440699,-160.0,0.00028219,2]
[319501278,1710803440708,-151.15077774,0.00028346,2]
[319501279,1710803440718,-151.031907,0.00028498,9]
[319501280,1710803440728,-162.6041618,0.00028541,2]
[319501281,1710803440738,-151.5947656,0.00028568,2]
[319501282,1710803440747,-155.0,0.00028768,2]
[319501283,1710803440756,-151.031907,0.00028798,9]
[319501284,1710803440766,-154.11102107,0.00028813,2]
[319501285,1710803440775,-47259.6188909,0.0002888,2]
[319501286,1710803440786,-1200.97223445,0.0002889,2]
[319501287,1710803440796,-3468.04811195,0.00029011,2]
[319501288,1710803440806,-367.04,0.00029017,2]
[319501289,1710803440816,-151.15077774,0.00029096,2]
[319501290,1710803440825,-188.0,0.00029178,2]
[319501291,1710803440836,-151.031907,0.00029198,9]
[319501292,1710803440846,-1823.38573137,0.000292,2]
[319501293,1710803440857,-151.031907,0.00029498,9]
[319501294,1710803440867,-843.48422727,0.000295,3]
[319501295,1710803440881,-307.06412405,0.00029699,2]
[319501296,1710803440891,-151.031907,0.00029798,9]
[319501297,1710803440901,-200.0,0.000298,2]
[319501298,1710803440911,-800.0,0.000298,5]
[319501299,1710803440921,-200.0,0.000298,2]
[319501300,1710803440931,-500.0,0.000298,2]
[319501301,1710803440941,-200.0,0.000298,2]
[319501302,1710803440951,-151.15077774,0.00029845,2]
[319501303,1710803440960,-500.0,0.00029975,3]
[319501304,1710803440971,-5048.11778627,0.0002999,2]
[319501305,1710803440981,-185.91255156,0.0003,14]
[319501306,1710803440991,-155.0,0.0003,4]
[319501307,1710803441000,-713.64088082,0.0003,30]
[319501308,1710803441010,-1592.9328983,0.0003,4]
[319501309,1710803441019,-8091.46671017,0.0003,4]
[319501310,1710803441029,-27458.97278721,0.0003,4]
[319501311,1710803441039,-268.31069023,0.0003,4]
[319501312,1710803441048,-155.0,0.0003,5]
[319501313,1710803441059,-33737.09845378,0.0003,4]
[319501314,1710803441068,-1569.43193933,0.0003,4]
[319501315,1710803441077,-591.49765394,0.0003,17]
[319501316,1710803441087,-2749.97254578,0.0003,2]
[319501317,1710803441097,-3200.0,0.0003,2]
[319501318,1710803441106,-382.30325147,0.0003,4]
[319501319,1710803441115,-406.19680602,0.0003,2]
[319501320,1710803441128,-500.0,0.0003,2]
[319501321,1710803441137,-3592.51885774,0.0003,7]
[319501322,1710803441147,-345.50876895,0.0003,2]
[319501323,1710803441156,-240.0,0.0003,120]
[319501324,1710803441165,-314.66015489,0.0003,2]
[319501325,1710803441175,-188.73,0.0003,2]
[319501326,1710803441184,-188.73,0.0003,2]
[319501327,1710803441193,-188.73,0.0003,2]
[319501328,1710803441202,-188.73,0.0003,2]
[319501329,1710803441212,-188.73,0.0003,2]
[319501330,1710803441221,-188.73,0.0003,2]
[319501331,1710803441230,-188.73,0.0003,2]
[319501332,1710803441239,-188.73,0.0003,2]
[319501333,1710803441248,-188.73,0.0003,2]
[319501334,1710803441257,-188.73,0.0003,2]
[319501335,1710803441266,-188.73,0.0003,2]
[319501336,1710803441276,-188.73,0.0003,2]
[319501337,1710803441285,-150.0,0.0003,2]
[319501338,1710803441294,-200.0,0.0003,2]
[319501339,1710803441303,-500.0,0.0003,2]
[319501340,1710803441312,-205.0,0.0003,2]
[319501341,1710803441322,-165.52,0.0003,2]
[319501342,1710803441332,-165.52,0.0003,2]
[319501343,1710803441342,-165.52,0.0003,2]
[319501344,1710803441352,-165.52,0.0003,2]
[319501345,1710803441362,-165.52,0.0003,2]
[319501346,1710803441374,-165.52,0.0003,2]
[319501347,1710803441383,-165.52,0.0003,2]
[319501348,1710803441393,-165.52,0.0003,2]
[319501349,1710803441402,-165.52,0.0003,2]
[319501350,1710803441411,-165.52,0.0003,2]
[319501351,1710803441421,-165.52,0.0003,2]
[319501352,1710803441431,-165.52,0.0003,2]
[319501353,1710803441440,-165.52,0.0003,2]
[319501354,1710803441449,-165.52,0.0003,2]
[319501355,1710803441458,-165.52,0.0003,2]
[319501356,1710803441468,-165.52,0.0003,2]
[319501357,1710803441477,-165.52,0.0003,2]
[319501358,1710803441487,-165.52,0.0003,2]
[319501359,1710803441496,-165.52,0.0003,2]
[319501360,1710803441505,-165.52,0.0003,2]
[319501361,1710803441514,-165.52,0.0003,2]
[319501362,1710803441524,-165.52,0.0003,2]
[319501363,1710803441533,-165.52,0.0003,2]
[319501364,1710803441542,-165.52,0.0003,2]
[319501365,1710803441551,-165.52,0.0003,2]
[319501366,1710803441560,-165.52,0.0003,2]
[319501367,1710803441569,-165.52,0.0003,2]
[319501368,1710803441579,-165.52,0.0003,2]
[319501369,1710803441588,-165.52,0.0003,2]
[319501370,1710803441597,-165.52,0.0003,2]
[319501371,1710803441607,-165.52,0.0003,2]
[319501372,1710803441616,-165.52,0.0003,2]
[319501373,1710803441629,-165.52,0.0003,2]
[319501374,1710803441638,-165.52,0.0003,2]
[319501375,1710803441647,-165.52,0.0003,2]
[319501376,1710803441656,-165.52,0.0003,2]
[319501377,1710803441666,-165.52,0.0003,2]
[319501378,1710803441675,-165.52,0.0003,2]
[319501379,1710803441684,-165.52,0.0003,2]
[319501380,1710803441693,-165.52,0.0003,2]
[319501381,1710803441702,-165.52,0.0003,2]
[319501382,1710803441711,-165.52,0.0003,2]
[319501383,1710803441721,-165.52,0.0003,2]
[319501384,1710803441730,-165.52,0.0003,2]
[319501385,1710803441739,-165.52,0.0003,2]
[319501386,1710803441748,-165.52,0.0003,2]
[319501387,1710803441758,-165.52,0.0003,2]
[319501388,1710803441767,-165.52,0.0003,2]
[319501389,1710803441777,-165.52,0.0003,2]
[319501390,1710803441786,-165.52,0.0003,2]
[319501391,1710803441795,-165.52,0.0003,2]
[319501392,1710803441804,-165.52,0.0003,2]
[319501393,1710803441814,-165.52,0.0003,2]
[319501394,1710803441823,-165.52,0.0003,2]
[319501395,1710803441831,-165.52,0.0003,2]
[319501396,1710803441841,-165.52,0.0003,2]
[319501397,1710803441850,-165.52,0.0003,2]
[319501398,1710803441859,-165.52,0.0003,2]
[319501399,1710803441868,-165.52,0.0003,2]
[319501400,1710803441879,-165.52,0.0003,2]
[319501401,1710803441888,-165.52,0.0003,2]
[319501402,1710803441898,-165.52,0.0003,2]
[319501403,1710803441907,-165.52,0.0003,2]
[319501404,1710803441916,-165.52,0.0003,2]
[319501405,1710803441925,-162.6041618,0.00030107,7]
[319501406,1710803441936,-153.6268143,0.00030128,7]
[319501407,1710803441945,-150.96,0.00030137,2]
[319501408,1710803441955,-470.02,0.00030137,10]
[319501409,1710803441965,-155.0,0.00030138,2]
[319501410,1710803441974,-151.031907,0.00030198,13]
[319501411,1710803441983,-161.18210781,0.00030236,7]
[319501412,1710803441993,-188.0,0.00030411,2]
[319501413,1710803442002,-156.66023418,0.00030451,2]
[319501414,1710803442012,-454.0,0.00030456,5]
[319501415,1710803442022,-151.031907,0.00030498,13]
[319501416,1710803442031,-1846.09786884,0.000305,7]
[319501417,1710803442040,-165.52,0.0003059,2]
[319501418,1710803442050,-151.15077774,0.00030595,2]
[319501419,1710803442060,-7500.0,0.000306,2]
[319501420,1710803442070,-1808.67538745,0.00030655,2]
[319501421,1710803442079,-188.73,0.000307,2]
[319501422,1710803442089,-188.73,0.000307,2]
[319501423,1710803442098,-188.73,0.000307,2]
[319501424,1710803442109,-188.73,0.000307,2]
[319501425,1710803442118,-188.73,0.000307,2]
[319501426,1710803442130,-188.73,0.000307,2]
[319501427,1710803442139,-188.73,0.000307,2]
[319501428,1710803442148,-188.73,0.000307,2]
[319501429,1710803442157,-188.73,0.000307,2]
[319501430,1710803442166,-188.73,0.000307,2]
[319501431,1710803442175,-188.73,0.000307,2]
[319501432,1710803442184,-188.73,0.000307,2]
[319501433,1710803442193,-188.73,0.000307,2]
[319501434,1710803442202,-188.73,0.000307,2]
[319501435,1710803442211,-188.73,0.000307,2]
[319501436,1710803442219,-188.73,0.000307,2]
[319501437,1710803442229,-188.73,0.000307,2]
[319501438,1710803442237,-188.73,0.000307,2]
[319501439,1710803442246,-188.73,0.000307,2]
[319501440,1710803442256,-188.73,0.000307,2]
[319501441,1710803442265,-188.73,0.000307,2]
[319501442,1710803442274,-188.73,0.000307,2]
[319501443,1710803442283,-188.73,0.000307,2]
[319501444,1710803442293,-188.73,0.000307,2]
[319501445,1710803442302,-151.031907,0.00030798,13]
[319501446,1710803442311,-250.0,0.000308,30]
[319501447,1710803442320,-155.18569217,0.00030842,7]
[319501448,1710803442329,-472.5476253,0.00031,4]
[319501449,1710803442339,-996.0,0.000311,2]
[319501450,1710803442348,-153.05383812,0.00031115,7]
[319501451,1710803442357,-151.031907,0.00031198,13]
[319501452,1710803442367,-155.18569217,0.00031276,7]
[319501453,1710803442379,-367.04,0.00031281,2]
[319501454,1710803442389,-151.15077774,0.00031344,2]
[319501455,1710803442399,-153.05383812,0.00031377,7]
[319501456,1710803442408,-165.52,0.0003139,2]
[319501457,1710803442417,-188.73,0.000314,2]
[319501458,1710803442427,-188.73,0.000314,2]
[319501459,1710803442436,-188.73,0.000314,2]
[319501460,1710803442446,-188.73,0.000314,2]
[319501461,1710803442456,-188.73,0.000314,2]
[319501462,1710803442466,-188.73,0.000314,2]
[319501463,1710803442477,-188.73,0.000314,2]
[319501464,1710803442487,-188.73,0.000314,2]
[319501465,1710803442497,-188.73,0.000314,2]
[319501466,1710803442507,-188.73,0.000314,2]
[319501467,1710803442517,-188.73,0.000314,2]
[319501468,1710803442526,-188.73,0.000314,2]
[319501469,1710803442536,-188.73,0.000314,2]
[319501470,1710803442545,-188.73,0.000314,2]
[319501471,1710803442555,-188.73,0.000314,2]
[319501472,1710803442564,-188.73,0.000314,2]
[319501473,1710803442573,-188.73,0.000314,2]
[319501474,1710803442582,-188.73,0.000314,2]
[319501475,1710803442592,-188.73,0.000314,2]
[319501476,1710803442601,-188.73,0.000314,2]
[319501477,1710803442610,-188.73,0.000314,2]
[319501478,1710803442619,-188.73,0.000314,2]
[319501479,1710803442634,-188.73,0.000314,2]
[319501480,1710803442647,-188.73,0.000314,2]
[319501481,1710803442656,-151.07221851,0.0003148,7]
[319501482,1710803442665,-151.031907,0.00031498,13]
[319501483,1710803442675,-155.0,0.00031508,2]
[319501484,1710803442684,-151.07221851,0.00031604,7]
[319501485,1710803442694,-186.42814042,0.00031605,7]
[319501486,1710803442703,-154.56106172,0.0003164,7]
[319501487,1710803442713,-353.02,0.00031644,2]
[319501488,1710803442725,-188.0,0.00031644,2]
[319501489,1710803442736,-170.67539672,0.000317,30]
[319501490,1710803442746,-151.031907,0.00031798,13]
[319501491,1710803442755,-153.80188616,0.00031798,7]
[319501492,1710803442765,-165.52,0.0003199,2]
[319501493,1710803442774,-813.9731123,0.00032,2]
[319501494,1710803442783,-188.73,0.00032,2]
[319501495,1710803442793,-188.73,0.00032,2]
[319501496,1710803442803,-188.73,0.00032,2]
[319501497,1710803442814,-188.73,0.00032,2]
[319501498,1710803442824,-188.73,0.00032,2]
[319501499,1710803442834,-188.73,0.00032,2]
[319501500,1710803442843,-188.73,0.00032,2]
[319501501,1710803442854,-188.73,0.00032,2]
[319501502,1710803443038,-188.73,0.00032,2]
[319501505,1710803443074,-188.73,0.00032,2]